Cogmind - Beta 14 @@@ ROGUE MODE // 2025.01.01 @ 17:34:11 Player: lazy_engineer Result: Destroyed by G-34 Mercenary with Small Laser Performance ------------- Evolutions (0) 0 Regions Visited (2) 400 Robots Destroyed (30) 150 Value Destroyed (542) 542 Prototype IDs (0) 0 Alien Tech Used (0) 0 Bonus (7) 7 TOTAL SCORE: 1099 Bonus ------- Follower Combat Kills 7 Cogmind --------- Core Integrity 0/250 Matter 300/300 Energy 82/100 System Corruption 0% Temperature Warm (123) Movement Treading (160) Location -10/Mines Parts ------- > --- POWER (1) -------- (None) > --- PROPULSION (2) --- Light Treads Light Treads > --- UTILITY (2) ------ Small Storage Unit Structural Scanner > --- WEAPON (2) ------- Beam Rifle > --- INVENTORY (8) ---- Aluminum Leg Aluminum Leg Aluminum Leg Improved Terrain Scanner Light Assault Rifle Light Assault Rifle Datajack Peak State ------------ > --- POWER ------------ Ion Engine > --- PROPULSION ------- Aluminum Leg Aluminum Leg > --- UTILITY ---------- Small Storage Unit Medium Matter Pod > --- WEAPON ----------- EM Pulse Gun EM Pulse Gun > --- INVENTORY -------- Light Ion Engine Light Treads Light Treads Wheel Wheel Improved Terrain Scanner Beam Cannon Mining Laser [Rating: 8] Favorites ----------- Power Ion Engine Engine Ion Engine Propulsion Aluminum Leg Treads Light Treads Leg Aluminum Leg Utility Small Storage Unit Device Structural Scanner Storage Small Storage Unit Processor Targeting Computer Protection Light Armor Plating Weapon EM Pulse Gun Energy Gun EM Pulse Gun Energy Cannon Beam Cannon Special Weapon Mining Laser Build | -11 -10 -10 ------- Run | Yrd Mat Min Slots Evolved . | . . . Power . | . . . Propulsion . | . . . Utility . | . . . Weapon . | . . . Parts Attached 21 | 7 6 8 Power 2 | 1 . 1 Engine 2 | 1 . 1 Core . | . . . Reactor . | . . . Propulsion 7 | 2 3 2 Treads 2 | . . 2 Leg 5 | 2 3 . Wheel . | . . . Hover . | . . . Flight . | . . . Utility 5 | 2 1 2 Device 1 | . . 1 Storage 2 | 2 . . Processor 1 | . 1 . Hackware . | . . . Protection 1 | . . 1 Artifact . | . . . Weapon 7 | 2 2 3 Energy Gun 4 | 2 . 2 Energy Cannon 1 | . 1 . Ballistic Gun . | . . . Ballistic Cannon . | . . . Launcher . | . . . Special Weapon 2 | . 1 1 Impact Weapon . | . . . Slashing Weapon . | . . . Piercing Weapon . | . . . Special Melee Weapon . | . . . Unidentified Prototypes . | . . . Parts Lost 10 | . 1 9 Power 2 | . . 2 Propulsion 2 | . . 2 Utility 1 | . . 1 Weapon 5 | . 1 4 Highest Loss Streak 5 | . 1 5 To Critical Strikes . | . . . Average Slot Usage (%) 98 | . 100 97 Engine 13 | . 14 13 Treads 9 | . . 20 Leg 18 | . 28 7 Device 4 | . . 9 Storage 14 | . 14 14 Processor 8 | . 13 3 Energy Gun 20 | . 20 20 Energy Cannon 5 | . 7 3 Special Weapon 1 | . . 2 Peak Build Rating 8 | 7 8 8 Average Rating 7 | 5 7 7 On Entrance 5 | . 7 8 Naked Turns . | . . . Heaviest Build 16 | 16 16 14 Greatest Support 40 | 20 20 40 Greatest Overweight (x) 3 | 3 . 1 Average Overweight (x) . | . . . Largest Inventory Capacity 8 | 8 8 8 Average Capacity 7 | 7 8 8 Most Carried 8 | 7 8 8 Average Carried 6 | 5 7 5 Final Capacity 8 | 8 8 8 Final Carried 8 | 7 8 7 Class Distribution -------------------- 100% | Mutant Dominant Class ---------------- Mutant | -10/Materials Mutant | -10/Mines Resources | -11 -10 -10 ----------- Run | Yrd Mat Min Matter Collected 461 | 341 60 60 Remotely . | . . . Salvage Created 1020 | 206 558 256 Parts 65 | 17 34 14 Haulers Intercepted 2 | . 2 . Recyclers Shooed 1 | . 1 . Parts Field Recycled . | . . . Retrieved Matter . | . . . Parts Self-Destructed . | . . . Prevented . | . . . Kills | -11 -10 -10 ------- Run | Yrd Mat Min Combat Hostiles Destroyed 16 | . 10 6 Guns 13 | . 10 3 Cannons 2 | . . 2 Classes Destroyed 9 | 3 5 1 Worker 4 | 2 1 1 Builder 1 | . 1 . Tunneler 5 | 4 1 . Hauler 2 | . 2 . Recycler 1 | 1 . . Watcher 1 | . 1 . Swarmer 5 | . 3 2 Grunt 9 | . 7 2 Sentry 2 | . . 2 Best Kill Streak 4 | 4 4 2 Combat Bots Only 3 | . 3 2 Max Kills in Single Turn 2 | 1 2 2 Gunslinging 1 | . 1 1 Exploded . | . . . Melee . | . . . Uniques/NPCs Destroyed . | . . . Combat | -11 -10 -10 -------- Run | Yrd Mat Min Hostile Shots Fired 116 | . 39 77 Missed 26 | . 14 12 Damage Taken 1320 | . 412 908 Core 261 | . 80 181 Absorbed by Shields . | . . . Core Remaining (%) 100 | 100 . . Volleys Fired 90 | 12 46 32 Largest 2 | 2 2 2 Hottest 100 | 80 100 100 Shots Fired 160 | 24 91 45 Gun 127 | 24 74 29 Cannon 33 | . 17 16 Launcher . | . . . Special . | . . . Kinetic . | . . . Thermal 58 | . 17 41 Explosive . | . . . Electromagnetic 102 | 24 74 4 Robot Hit Streak 12 | 6 7 12 Robot Miss Streak 4 | 2 4 2 Penetration Max . | . . . Secondary Targets 5 | . 4 1 Max Gunslinging Chain 1 | . 1 1 Shots Hit Robots 101 | 14 52 35 Core Hits 38 | 7 22 9 Critical Kills . | . . . Critical Parts Destroyed . | . . . Critical Strikes 1 | . . 1 Burn 1 | . . 1 Melee Attacks . | . . . Impact . | . . . Slashing . | . . . Piercing . | . . . Sneak Attacks . | . . . Combat Hostiles . | . . . Follow-up Attacks . | . . . Damage Inflicted 1615 | 247 851 517 Guns 1109 | 164 638 307 Cannons 335 | . 125 210 Explosions 171 | 83 88 . Melee . | . . . Ramming . | . . . Kinetic . | . . . Thermal 757 | 83 213 461 Explosive . | . . . Electromagnetic 858 | 164 638 56 Impact . | . . . Slashing . | . . . Piercing . | . . . Highest Corruption . | . . . Average Corruption . | . . . Corruption Purged . | . . . Corruption Blocked . | . . . Overload Shots . | . . . Overflow Damage 37 | 24 . 13 Projectiles 13 | . . 13 Explosions 24 | 24 . . Melee . | . . . Knockbacks . | . . . Impact . | . . . Kinetic . | . . . Secondary . | . . . Self-Inflicted Damage 54 | . 54 . Shots 2 | . 2 . Rammed . | . . . Targets Rammed . | . . . Kicked . | . . . Crushed . | . . . Highest Temperature 358 | 54 269 358 Average Temperature 90 | 26 79 132 Received Heat Transfer 555 | . 159 396 Siege Activations . | . . . Robots Corrupted . | . . . Combat Hostiles . | . . . Parts Fried 4 | . 4 . Impact Corruptions . | . . . Robots Melted 1 | . . 1 Combat Hostiles 1 | . . 1 Parts Melted 3 | . . 3 Heat Transferred 1636 | 100 409 1127 Parts Sabotaged . | . . . Parts Stolen . | . . . Parts Stripped . | . . . Power Chain Reactions 4 | 2 2 . Alert | -11 -10 -10 ------- Run | Yrd Mat Min Peak Influence 292 | 35 292 129 Initial 93 | . 22 93 Average 121 | 16 178 92 Maximum Alert Level 1 | . 1 . Low Security (%) 75 | 100 46 100 Level 1 24 | . 53 . Level 2 . | . . . Level 3 . | . . . Level 4 . | . . . Level 5 . | . . . High Security . | . . . Max Security . | . . . Squads Dispatched 2 | . 2 . Investigation 2 | . 2 . Extermination . | . . . Reinforcement . | . . . Assault . | . . . Garrison . | . . . Intercept . | . . . Searches Triggered . | . . . Construction Impeded . | . . . Haulers Reinforced . | . . . Active Scanning Responses . | . . . Cargo Convoy Interrupts . | . . . Stealth | -11 -10 -10 --------- Run | Yrd Mat Min Distress Signals . | . . . Communications Jammed . | . . . Distress Signals . | . . . Times Spotted 31 | . 18 13 Peak Tracking Total 5 | . 3 5 Tactical Retreats 3 | . 2 1 Traps | -11 -10 -10 ------- Run | Yrd Mat Min Traps Triggered . | . . . Indirectly . | . . . Trap Hack Attempts . | . . . Triggered . | . . . Disarmed . | . . . Reprogrammed . | . . . Reused . | . . . Traps Extracted . | . . . Installed . | . . . Triggered . | . . . Machines | -11 -10 -10 ---------- Run | Yrd Mat Min Machines Disabled . | . . . Max in Single Turn . | . . . Machines Repaired . | . . . Machines Dismantled . | . . . Machines Sabotaged . | . . . Overloaded Fab Kills . | . . . Hacking | -11 -10 -10 --------- Run | Yrd Mat Min Machines Accessed 6 | . 6 . Terminals 6 | . 6 . Fabricators . | . . . Repair Stations . | . . . Recycling Units . | . . . Scanalyzers . | . . . Garrison Access . | . . . Total Hacks 18 | . 18 . Successful 7 | . 7 . Failed 10 | . 10 . Catastrophic 2 | . 2 . Database Lockouts 1 | . 1 . Manual 19 | . 19 . Terminals 18 | . 18 . Fabricators . | . . . Repair Stations . | . . . Recycling Units . | . . . Scanalyzers . | . . . Garrison Access . | . . . Terminal Hacks 6 | . 6 . Robot Analysis 2 | . 2 . Branch Access Points 1 | . 1 . Terminal Index 1 | . 1 . Recall Investigation 1 | . 1 . Zone Layout 1 | . 1 . Fabricator Hacks . | . . . Repair Station Hacks . | . . . Recycling Unit Hacks . | . . . Scanalyzer . | . . . Garrison Access Hacks . | . . . Unauthorized Hacks 1 | . 1 . Terminals 1 | . 1 . Operators 1 | . 1 . Fabricators . | . . . Repair Stations . | . . . Recycling Units . | . . . Scanalyzers . | . . . Garrison Access . | . . . Data Cores Recovered . | . . . Used . | . . . Hacking Detections 5 | . 5 . Full Trace Events 2 | . 2 . Feedback Events . | . . . Feedback Blocked . | . . . Robot Schematics Acquired . | . . . Robots Built . | . . . Authchips . | . . . Time . | . . . Total Robot Build Rating . | . . . Part Schematics Acquired . | . . . Parts Built . | . . . Authchips . | . . . Time . | . . . Total Part Build Rating . | . . . Parts Repaired . | . . . Time . | . . . Parts Recycled . | . . . Recycled Matter . | . . . Retrieved Matter . | . . . Retrieved Components . | . . . Parts Scanalyzed . | . . . Part Schematics Acquired . | . . . Parts Damaged . | . . . Bothacking | -11 -10 -10 ------------ Run | Yrd Mat Min Used RIF Installer . | . . . Robots Hacked . | . . . Non-combat . | . . . Combat . | . . . Robot Hacks Applied . | . . . Relay Couplers Released . | . . . Fabnet Peak Effective % . | . . . Robots Rewired . | . . . Allies Hacked . | . . . Hacks Repelled . | . . . Allies | -11 -10 -10 -------- Run | Yrd Mat Min Total Allies 2 | . . 2 Largest Group 2 | . . 2 Highest-Rated Group 42 | . . 42 Highest-Rated Ally 31 | . . 31 Total Orders . | . . . Ally Attacks 11 | . . 11 Total Damage 72 | . . 72 Kills 1 | . . 1 Allies Corrupted . | . . . Allies Melted . | . . . Intel | -11 -10 -10 ------- Run | Yrd Mat Min Robot Analysis Total 2 | . 2 . Derelict Logs Recovered 1 | . . 1 Drone Launches . | . . . Drone Recoveries . | . . . Exploration | -11 -10 -10 ------------- Run | Yrd Mat Min Turns Passed 1379 | 179 631 569 Spaces Moved 816 | 103 398 315 Core 18 | 18 . . Treads 221 | . . 221 Legs 577 | 85 398 94 Wheels . | . . . Hover . | . . . Flight . | . . . Fastest Speed 50 | 50 120 120 Average Speed 130 | 119 120 148 Slowest Speed 200 | 200 120 190 Overloaded Moves . | . . . Propulsion Burnouts . | . . . Robots Hopped . | . . . Cave-ins Triggered . | . . . Exploration Rate (%) 49 | 7 68 72 Regions Visited 2 Branch Regions 1 Pre-discovered Areas 1 | . . 1 Known Exits Taken 1 | . 1 . Unknown Exits Taken 1 | 1 . . Scrap Searched 3 | . . 3 Spaces Dug . | . . . Terrain Destroyed 13 | 6 7 . Melee . | . . . Projectile . | . . . AOE 13 | 6 7 . Terrain Rammed . | . . . Walls Destroyed . | . . . Machines Disabled . | . . . Actions | -11 -10 -10 --------- Run | Yrd Mat Min Total 968 | 134 463 371 Wait 14 | . 4 10 Move 814 | 102 397 315 Hop . | . . . Pick Up 22 | 13 4 5 Fast Attach 4 | 1 1 2 Attach 13 | 6 1 6 Detach . | . . . Swap 4 | . 4 . Drop 7 | . 6 1 Fire 90 | 12 46 32 Melee . | . . . Ram . | . . . Kick . | . . . Crush . | . . . Escape Stasis . | . . . Rewire . | . . . Trap . | . . . Miscellaneous . | . . . Route ------- -11/Scrapyard -10/Materials (discovered 4 exits: [*Mat x2] / *Min x2) -10/Mines (discovered 2 exits: [*Mat x2]) History --------- Turn | Location | Event 27 | -11/Scrapyard | Discovered new exit (range 15) 180 | -11/Scrapyard | Entered Materials 264 | -10/Materials | Discovered new exit (range 12) 301 | -10/Materials | Build established: Mutant 389 | -10/Materials | Discovered new exit (range 5) 412 | -10/Materials | Discovered new exit (range 5) 573 | -10/Materials | Central database locked down 765 | -10/Materials | Discovered new exit (range 4) 775 | -10/Materials | Identified exit to Mines 811 | -10/Materials | Entered Mines 860 | -10/Mines | Learned location of Mines (-9) 887 | -10/Mines | Discovered new exit (range 11) 958 | -10/Mines | Core integrity fell below 50% 981 | -10/Mines | Core integrity fell below 20% 1012 | -10/Mines | Lost 5 parts (2n1u2w) 1329 | -10/Mines | Discovered new exit (range 10) 1380 | -10/Mines | Destroyed by G-34 Mercenary with Small Laser Last Messages --------------- 00988_ Acquired Beam Rifle. 00993_ Beam Rifle melted. 00993_ Y-45 Defender destroyed. 00996_ Acquired 10 matter. 01009_ U-05 Engineer builds a Door. 01261_ K-01 Serf cleans the Matter Pump. 01297_ K-01 Serf suffers critical hit (Burn). 01297_ K-01 Serf destroyed. 01329_ EXIT=FOUND 01330_ A pair of derelicts emerge from the shadows: "We're, um, lost. You wouldn't happen to know the way out of here, would you?" 01343_ PI-O5U(z) suffers critical hit (Burn). 01348_ S-10 Pest destroyed. 01348_ Switching to secondary target: S-10 Pest. 01348_ S-10 Pest destroyed. 01363_ Acquired Lgt. Assault Rifle. 01369_ Critical hit (Burn: +37). 01371_ Lgt. Ion Engine destroyed. 01379_ K-01 Serf collects debris. 01379_ Sml. Laser destroyed. Map ----- +----------------------------------------------------+ | ???????########## ##??????????### ######## | | ?????????#####?## #????????????### ####### | | ???????????????## #????????????#### ####### | | ???????????????## #?????????????### ###### | | ???????????????## #??????????????## ##### | | ???????????????## #???????????????? ??## | | ???????????????## #???????????????? ??## #### | | ???????????????## #???????????????????## ##### | | ???????????????? ??????????????????######### | | ???????????????? #??????????????????######## | | ????????????????####????????????? | | ??????????????????????????????????????######## | | ??????????????????????????????????????######### "" | | ?????????????????????????????????????? ##??### "" | | ????????????????????????????????????? ##?#### "" | | ???????????????????????????????????? ##?### | | ??????????????????????????????? """ < ???## | | ??????????????????????????????? ???## | | ???????????????????## ??????????""" """ ???## | | ??????????# ?????## ?######???""" ""?????### # | | ??????????## ###### ########??""" "??????#### ## | | ??????????## ##### ### #### ??????##### ## | | ??????????## ## g##### ##??????##### ## | | ??????????## [g!%= #######?## ## | | ??????????## ?## ###### #######?## ##### | | ??????????????### @####### ##?## ##### | | ??????????????### *############ ##?## ##??? | | ???????????????### %=%############ ##?## ##??? | | ???????????????#### ###???## ##### ##??? | | ????????????????#### ####### #####%####? | | ?????????????????### ###### # ##!####? | | ?????????????????### k ### | | ?????????????????## ## | | ????????????????? ##### ### ## | | ????????????? ############# ### | | ?????????????#### ### #######?############## | | ?????????????##### ##############??????????#####? | | ???????????????###############???????????????????? | | ????????????????#####????????????????????????????? | | | | | | | | | | | | | | | | | | | | | | | +----------------------------------------------------+ Best States ------------- Heat Dissipation 25 Energy Generation 10 Energy Capacity 250 Matter Stores 400 Matter Capacity 400 Sight Range 16 Terrain Scan Density 10 Armor Coverage 150 Evasion (%) 55 Targeting Accuracy 5 Recoil Reduction 2 Item Schematics ----------------- None Robot Schematics ------------------ None Fabricated ------------ Nothing Alien Tech Used ----------------- None Achievements -------------- None Challenges ------------ None Game ------ Seed SpreadTransportSegregator Manual? 0 Play Time 00:14:36 Cumulative 45.7 hours Start 2025.01.01 @ 17:19:06 End 2025.01.01 @ 17:34:11 Sessions 1 Manual Loads 0 Difficulty Rogue Special Mode None Game No. 98 Rogue 98 Adventurer 0 Explorer 0 Win Type - Total 0 Types 0/0/0/0/0/0/0/0/0 Lore% 17 Gallery% 29 Achievement% 27 Wizard Run 0 Options --------- Layout 0 ASCII 0 Keyboard 0 Movement Mouse Keybinds 0 Fullscreen 1 Font 24/Smallcaps Map View 76x50 Zoom Use 0% Tactical HUD 1 Map Filters NONE Filters NONE Steam 1 RUN: 0e6df2ed-4184-4f28-b181-a9793308aa76